Cogmind - Beta 16 @@@ ROGUE MODE // 2025.12.23 @ 00:44:21 Player: naththebg Result: Destroyed by G-67 Veteran with Plasma Rifle Performance ------------- Evolutions (7) 3500 Regions Visited (20) 4000 Robots Destroyed (296) 1480 Value Destroyed (16437) 16437 Prototype IDs (37) 740 Alien Tech Used (0) 0 Bonus (18376) 18376 TOTAL SCORE: 44533 Bonus ------- Triggered High Security 1000 High Alert Combat Kills 4055 Follower Combat Kills 6973 Entered Garrisons 1400 Used RIF Installer 4500 Scanned by Researcher 500 Friendly Fire -52 Cogmind --------- Core Integrity 0/1300 Matter 282/300 Energy 99/100 System Corruption 24% Temperature Cool (12) Movement Core (50) Location -3/Research Parts ------- > --- POWER (2) -------- (None) > --- PROPULSION (4) --- Advanced Heavy Treads > --- UTILITY (12) ----- (None) > --- WEAPON (3) ------- (None) > --- INVENTORY (5) ---- Heavy Siege Treads Experimental Core Analyzer Relay Coupler [Sentry] (30) Relay Coupler [Proto] (15) Peak State ------------ > --- POWER ------------ Light Particle Reactor Quantum Reactor > --- PROPULSION ------- Armored Huge Wheel Armored Huge Wheel > --- UTILITY ---------- Huge Storage Unit Experimental Optical Array Advanced Kinecellerator Layered Heavy Armor Plating Improved Powered Armor Improved Powered Armor Relay Coupler [NC] Relay Coupler [Sentry] Relay Coupler [Specialist] Relay Coupler [Specialist] Relay Coupler [Hunter] > --- WEAPON ----------- Heavy Mass Driver Advanced Remote Datajack > --- INVENTORY -------- Armored Heavy Treads Advanced Heavy Treads Improved Heavy Siege Treads Advanced Heat Sink Experimental Core Analyzer Layered Heavy Armor Plating Advanced Remote Force Field Relay Coupler [NC] Relay Coupler [NC] Relay Coupler [Sentry] Relay Coupler [Sentry] Relay Coupler [Sentry] Relay Coupler [Heavy] Relay Coupler [Proto] Enhanced Nova Cannon Improved Remote Datajack Improved Remote Datajack [Rating: 128] Favorites ----------- Power Particle Reactor Engine Improved Ion Engine Power Core Enhanced Nuclear Core Reactor Particle Reactor Propulsion Armored Wheel Treads Light Treads Leg Aluminum Leg Wheel Armored Wheel Utility Huge Storage Unit Device Improved Heat Sink Storage Huge Storage Unit Processor Advanced Visual Processing Unit Hackware Relay Coupler [NC] Protection Medium Reactive Plating Weapon Heavy Mass Driver Energy Gun EM Pulse Gun Energy Cannon Heavy Particle Cannon Ballistic Gun Assault Rifle Ballistic Cannon Heavy Mass Driver Launcher Improved Grenade Launcher Special Weapon Improved Remote Datajack Special Melee Weapon Datajack Build | -11 -10 -10 -9 -9 -8 -8 -8 -8 -7 -7 -7 -7 -6 -6 -6 -6 -5 -5 -4 -3 ------- Run | Yrd Mat Min Mat Min Mat Gar Mat Gar Fac Gar Fac Gar Fac Gar Fac Gar Fac Gar Fac Res Slots Evolved 14 | . . . 2 . 2 . . . 2 . . . 2 . . . 2 . 2 2 Power 1 | . . . . . . . . . . . . . . . . . . . 1 . Propulsion 2 | . . . . . 1 . . . . . . . 1 . . . . . . . Utility 10 | . . . 2 . . . . . 2 . . . 1 . . . 2 . 1 2 Weapon 1 | . . . . . 1 . . . . . . . . . . . . . . . Parts Attached 190 | 6 6 3 8 1 21 8 10 11 9 10 2 16 8 19 3 10 5 10 5 19 Power 21 | 1 1 1 1 . 3 1 2 1 1 . . 2 1 2 . . . 1 . 3 Engine 13 | 1 1 1 1 . 3 1 2 1 . . . 2 . . . . . . . . Core 4 | . . . . . . . . . 1 . . . 1 1 . . . . . 1 Reactor 4 | . . . . . . . . . . . . . . 1 . . . 1 . 2 Propulsion 31 | 2 2 . 2 . 8 1 2 3 2 1 . . 2 2 . . 2 . . 2 Treads 16 | . 2 . 2 . 5 . . 1 2 . . . . 2 . . . . . 2 Leg 2 | 2 . . . . . . . . . . . . . . . . . . . . Wheel 13 | . . . . . 3 1 2 2 . 1 . . 2 . . . 2 . . . Hover . | . . . . . . . . . . . . . . . . . . . . . Flight . | . . . . . . . . . . . . . . . . . . . . . Utility 101 | 1 3 . 2 1 3 3 4 4 5 8 2 10 4 13 3 8 2 8 5 12 Device 15 | . 2 . . 1 1 3 . 1 1 . 1 1 . 2 . . . . 1 1 Storage 5 | 1 1 . . . 1 . 2 . . . . . . . . . . . . . Processor 4 | . . . 1 . . . . . 1 . . 1 . . . . . . . 1 Hackware 63 | . . . 1 . . . 1 1 2 7 1 7 3 11 1 8 2 7 4 7 Protection 14 | . . . . . 1 . 1 2 1 1 . 1 1 . 2 . . 1 . 3 Artifact . | . . . . . . . . . . . . . . . . . . . . . Weapon 37 | 2 . 2 3 . 7 3 2 3 1 1 . 4 1 2 . 2 1 1 . 2 Energy Gun 1 | 1 . . . . . . . . . . . . . . . . . . . . Energy Cannon 19 | . . 2 2 . 7 2 1 3 . . . . 1 . . . . . . 1 Ballistic Gun 2 | 1 . . . . . . . . 1 . . . . . . . . . . . Ballistic Cannon 5 | . . . . . . . . . . . . 2 . 1 . 1 . 1 . . Launcher 2 | . . . 1 . . 1 . . . . . . . . . . . . . . Special Weapon 7 | . . . . . . . . . . 1 . 2 . 1 . 1 1 . . 1 Impact Weapon . | . . . . . . . . . . . . . . . . . . . . . Slashing Weapon . | . . . . . . . . . . . . . . . . . . . . . Piercing Weapon . | . . . . . . . . . . . . . . . . . . . . . Special Melee Weapon 1 | . . . . . . . 1 . . . . . . . . . . . . . Unidentified Prototypes 5 | . . . . . 1 . 1 . 2 . . . . . . . . . . 1 Corrupted Parts 1 | . . . . . . . . . . . . . . . . . . . . 1 System Corruption 5 | . . . . . . . . . . . . . . . . . . . . 5 Parts Lost 57 | . . . . 1 3 3 1 11 . 3 . 3 . 3 1 2 . 1 2 23 Power 6 | . . . . . 1 1 . 1 . . . 1 . . . . . . 1 1 Propulsion 11 | . . . . . 1 1 . 3 . . . 1 . . . . . . . 5 Utility 30 | . . . . 1 1 . . 4 . 2 . 1 . 3 1 1 . . 1 15 Weapon 10 | . . . . . . 1 1 3 . 1 . . . . . 1 . 1 . 2 Highest Loss Streak 21 | . . . . 1 2 1 1 11 . 2 . 1 . 1 1 1 . 1 1 21 To Critical Strikes . | . . . . . . . . . . . . . . . . . . . . . Average Backups 19 | 4 11 15 14 14 19 18 23 21 19 22 24 23 22 20 19 18 18 19 18 14 Power 1 | . 2 2 1 1 1 . . 1 1 1 1 . 1 1 2 2 2 1 . . Propulsion 3 | 3 4 4 4 5 6 6 5 2 1 2 2 1 . 2 3 3 3 3 3 2 Utility 11 | . 4 6 6 5 7 5 12 12 12 15 15 16 16 13 12 11 10 12 13 9 Weapon 2 | . 1 2 3 3 3 5 4 4 3 3 6 4 2 1 1 1 2 1 1 . Tool/Special . | . . . . . . . . . . . . . . . . . . . . . Unused Backups 47 | . 1 2 2 . 7 1 2 1 4 3 1 7 4 1 . 2 1 3 . 5 Power 4 | . 1 . 1 . . . . . 1 . . . . . . . . 1 . . Propulsion 6 | . . . . . 4 . . . . . . . 1 . . . . . . 1 Utility 25 | . . 1 . . 2 1 2 1 2 3 . 4 3 1 . 1 . 1 . 3 Weapon 9 | . . 1 1 . 1 . . . . . 1 3 . . . 1 . 1 . . Tool/Special 3 | . . . . . . . . . 1 . . . . . . . 1 . . 1 Average Slot Usage (%) 86 | . 99 100 98 100 93 99 99 96 98 94 92 87 81 74 72 75 73 72 76 65 Engine 4 | . 14 14 11 11 8 8 9 8 2 . . 6 . . . . . . . . Core 1 | . . . . . . . . . 4 7 7 . 5 3 . . . . 4 1 Reactor 1 | . . . . . . . . . . . . . . 2 6 6 5 5 5 5 Treads 9 | . 26 28 22 22 25 4 . 4 7 2 . 1 5 7 13 13 9 . . 1 Wheel 9 | . . . . . . 22 27 22 15 14 15 12 13 5 . . 1 11 10 7 Device 7 | . 13 14 11 11 9 16 11 11 7 7 7 7 4 5 5 . . . 4 3 Storage 7 | . 14 14 11 11 9 9 9 9 7 7 7 7 6 6 6 6 5 5 5 3 Processor 2 | . . . 10 11 6 . . . 6 5 . 3 2 . . . . . . 2 Hackware 16 | . . . 9 11 9 2 6 2 10 11 30 20 21 25 20 33 32 31 31 21 Protection 4 | . . . . . . 7 9 11 10 12 . 5 6 2 5 1 3 5 5 8 Energy Gun 1 | . 14 6 . . . . . . . . . . . . . . . . . . Energy Cannon 9 | . . 13 21 22 22 24 24 22 21 18 15 7 . . . . . . . . Ballistic Gun 1 | . 14 8 . . . . . . . . . . . . . . . . . . Ballistic Cannon 2 | . . . . . . . . . . . . 3 6 5 6 5 5 5 5 3 Special Weapon 3 | . . . . . . . . . . 2 7 7 6 6 6 6 5 5 5 3 Peak Build Rating 128 | 6 11 13 19 19 35 36 37 39 48 55 51 60 71 92 92 90 100 91 111 128 Average Rating 55 | 3 10 12 17 18 25 33 33 32 39 50 50 54 67 80 88 86 93 84 105 104 On Entrance 49 | . 6 11 13 18 19 35 36 34 31 48 51 50 60 71 85 88 86 88 91 108 Avg Prop Armor Cover (%) 10 | . . . . . 13 9 . 6 6 7 . 8 5 . . . . . . 43 Naked Turns . | . . . . . . . . . . . . . . . . . . . . . Heaviest Build 189 | 12 33 38 39 37 76 83 134 132 99 139 105 138 138 135 143 131 155 155 170 189 Greatest Support 135 | 20 40 40 40 40 63 36 36 36 24 40 40 40 56 135 135 135 135 56 56 135 Greatest Overweight (x) 10 | 2 . . . . 6 3 10 9 4 6 2 4 3 2 1 . 2 2 3 3 Average Overweight (x) 1 | . . . . . . 2 2 3 3 3 2 3 2 . . . . 2 2 1 Largest Inventory Capacity 25 | 8 15 15 15 15 20 20 25 25 20 25 25 25 25 25 25 25 25 25 25 25 Average Capacity 22 | 7 14 15 15 15 19 20 24 23 20 23 25 25 25 25 25 25 25 25 25 21 Most Carried 25 | 7 15 15 15 15 20 20 25 25 20 25 25 25 25 25 25 25 25 25 24 22 Average Carried 21 | 4 12 14 14 14 19 18 23 21 19 22 24 24 24 24 24 23 23 23 22 17 Final Capacity 25 | 8 15 15 15 15 20 20 25 20 20 25 25 25 25 25 25 25 25 25 25 5 Final Carried 25 | 6 15 15 15 15 20 20 25 19 20 25 24 25 25 25 24 25 21 25 22 5 Class Distribution -------------------- 44% | Botlord-Tank 20% | Mutant 14% | Bothacker-Tank 5% | Bothacker-Gunner 5% | Tank Dominant Class ---------------- Mutant | -10/Materials Mutant | -10/Mines Mutant | -9/Materials Mutant | -9/Mines Mutant | -8/Materials Tank | -8/Garrison Bothacker-Tank | -8/Materials Bothacker-Tank | -8/Garrison Bothacker-Tank | -7/Factory Bothacker-Tank | -7/Garrison Bothacker-Gunner | -7/Factory Botlord-Tank | -7/Garrison Botlord-Tank | -6/Factory Botlord-Tank | -6/Garrison Botlord-Tank | -6/Factory Botlord-Tank | -6/Garrison Botlord-Tank | -5/Factory Botlord-Tank | -5/Garrison Botlord-Tank | -4/Factory Botlord-Tank | -3/Research Resources | -11 -10 -10 -9 -9 -8 -8 -8 -8 -7 -7 -7 -7 -6 -6 -6 -6 -5 -5 -4 -3 ----------- Run | Yrd Mat Min Mat Min Mat Gar Mat Gar Fac Gar Fac Gar Fac Gar Fac Gar Fac Gar Fac Res Matter Collected 8281 | 227 263 45 80 30 315 306 270 254 115 394 77 459 767 968 337 880 217 757 754 766 Remotely . | . . . . . . . . . . . . . . . . . . . . . Salvage Created 10808 | . 758 302 530 134 1030 937 995 389 236 964 49 622 517 334 448 890 31 441 742 459 Parts 548 | . 59 25 29 3 57 44 42 26 11 39 2 39 40 17 11 35 2 19 20 28 Haulers Intercepted 10 | . 2 . 2 . 2 . 2 . 2 . . . . . . . . . . . Recyclers Shooed 5 | . . 1 1 . 1 . . . . . . . 1 . . . 1 . . . Parts Field Recycled . | . . . . . . . . . . . . . . . . . . . . . Retrieved Matter . | . . . . . . . . . . . . . . . . . . . . . Parts Self-Destructed . | . . . . . . . . . . . . . . . . . . . . . Prevented . | . . . . . . . . . . . . . . . . . . . . . Parts Restored . | . . . . . . . . . . . . . . . . . . . . . Kills | -11 -10 -10 -9 -9 -8 -8 -8 -8 -7 -7 -7 -7 -6 -6 -6 -6 -5 -5 -4 -3 ------- Run | Yrd Mat Min Mat Min Mat Gar Mat Gar Fac Gar Fac Gar Fac Gar Fac Gar Fac Gar Fac Res Combat Hostiles Destroyed 242 | . 13 9 11 3 17 31 16 13 1 22 1 19 15 11 7 22 1 9 10 11 Melee 3 | . . . . . . . . . . . . . . 1 . . . . 1 1 Guns 15 | . 10 4 . . . . . . . 1 . . . . . . . . . . Cannons 179 | . . 3 6 3 12 17 13 7 1 19 1 19 12 10 7 22 1 9 7 10 AOE 36 | . 3 1 5 . 4 12 2 5 . . . . 2 . . . . . 2 . Classes Destroyed 19 | . 8 . 1 . 1 2 2 . . 1 . . . 2 . . . . 1 1 Worker 7 | . 1 1 . . . . 2 . 1 . . . 1 . . . . . . 1 Builder 8 | . 3 . . . 2 . . . . . . . 3 . . . . . . . Hauler 10 | . 2 . 2 . 2 . 2 . 2 . . . . . . . . . . . Recycler 7 | . 1 1 . . 2 . . . . . . . . . 1 . . . 2 . Mechanic 1 | . . . . . . . 1 . . . . . . . . . . . . . Operator 2 | . 1 . . . . . 1 . . . . . . . . . . . . . Watcher 13 | . 3 . 2 . 3 . . . 2 . . . 2 . . 1 . . . . Swarmer 54 | . 3 5 3 . 6 10 . 3 . 7 . 8 3 2 . . . 1 . 3 Cutter 2 | . . . . . . . . . . . . . . 2 . . . . . . Saboteur 1 | . . . . . . . . . . . . . . . . . . . 1 . Grunt 105 | . 10 4 7 3 6 13 8 5 . 8 . 3 3 2 3 17 . 6 5 2 Brawler 5 | . . . . . . . 1 1 . . . 1 . 1 . . . . 1 . Duelist 11 | . . . . . . 4 3 1 . 1 . . . . 1 . 1 . . . Protector 1 | . . . . . . . . . . . . . . . . . . . . 1 Sentry 27 | . . . 2 . 4 3 4 . . 1 . 3 2 1 3 . . 2 2 . Specialist 5 | . . . . . . . . . . 2 . . 1 . . 1 . . 1 . Hunter 10 | . . . . . . 1 . . . 2 . . 4 . 1 . . 1 . 1 Programmer 26 | . . . . . 1 . . 3 1 1 1 4 3 3 . 4 . . 1 4 Executioner 1 | . . . . . . . . . . . . . . 1 . . . . . . Best Kill Streak 13 | . 4 3 4 2 12 7 3 13 2 4 1 3 4 3 3 5 1 2 4 4 Combat Bots Only 13 | . 3 3 4 2 5 7 2 13 1 4 1 3 3 3 3 5 1 2 2 3 Max Kills in Single Turn 5 | . 2 1 5 1 3 2 2 3 1 1 1 1 3 1 1 1 1 1 1 1 Gunslinging . | . . . . . . . . . . . . . . . . . . . . . Exploded 4 | . 2 1 4 . 3 2 1 3 . . . . 2 . . . . . 1 . Melee 1 | . . . . . . . . . . . . . . 1 . . . . 1 1 Uniques/NPCs Destroyed . | . . . . . . . . . . . . . . . . . . . . . Combat | -11 -10 -10 -9 -9 -8 -8 -8 -8 -7 -7 -7 -7 -6 -6 -6 -6 -5 -5 -4 -3 -------- Run | Yrd Mat Min Mat Min Mat Gar Mat Gar Fac Gar Fac Gar Fac Gar Fac Gar Fac Gar Fac Res Hostile Shots Fired 1780 | . 73 15 17 13 86 94 39 150 2 158 7 144 76 87 30 159 1 54 159 416 Missed 502 | . 29 4 4 3 22 23 6 49 . 42 1 47 23 22 8 34 . 11 66 108 Hits 1278 | . 44 11 13 10 64 71 33 101 2 116 6 97 53 65 22 125 1 43 93 308 Melee 53 | . . . . . 3 3 3 . . . . . . 1 . . . 7 . 36 Projectile 1225 | . 44 11 13 10 61 68 30 101 2 116 6 97 53 64 22 125 1 36 93 272 AOE 7 | . . . . . . . . . 1 . . . . 2 . . . 1 . 3 Critical Strikes 59 | . . . . . 3 5 3 8 . . . 2 2 3 . 4 . 7 4 18 Part Disruptions 1 | . . . . . . . . 1 . . . . . . . . . . . . Damage Taken 19770 | . 432 78 156 126 919 1137 621 1547 50 1181 140 1103 740 1000 273 1344 108 1069 1342 6404 Core 2620 | . 38 28 32 . 134 104 75 190 . 175 . 154 43 96 23 105 . 71 36 1316 Absorbed by Shields 2994 | . 167 33 60 17 . . . . . . . 218 238 148 . 977 2 141 258 735 Reduced by Siege Mode 274 | . . . . . . . . . . . . . . 24 26 218 6 . . . Ignored by Resistances 401 | . . . . . . . 13 6 . 233 . 149 . . . . . . . . Regen/Repaired (Parts) 3339 | . 415 . . . 54 . 176 41 21 92 55 . 155 . . . 481 519 718 612 Core Remaining (%) 72 | 100 . 73 . 92 . . . 8 . . . 53 . . . 68 . 92 96 . Volleys Fired 914 | . 67 15 29 10 53 80 36 26 11 71 16 61 67 67 24 70 13 68 67 63 Largest 3 | . 2 2 2 2 3 3 3 3 3 3 2 2 1 1 1 1 1 1 1 1 Hottest 250 | . 60 123 136 136 228 228 250 250 225 240 150 150 65 65 65 65 65 65 65 120 Shots Fired 1345 | . 127 24 50 20 121 145 92 45 26 136 22 90 68 71 25 72 13 68 67 63 Gun 143 | . 127 11 . . . . . . . 5 . . . . . . . . . . Cannon 1021 | . . 13 49 20 118 133 91 41 26 123 13 80 52 45 17 55 6 44 49 46 Launcher 21 | . . . 1 . 3 12 1 4 . . . . . . . . . . . . Special 160 | . . . . . . . . . . 8 9 10 16 26 8 17 7 24 18 17 Kinetic 398 | . 60 5 . . . . . . . 5 . 18 52 45 17 55 6 44 49 42 Thermal 677 | . . 6 40 20 118 133 91 41 26 123 13 62 . . . . . . . 4 Explosive 21 | . . . 1 . 3 12 1 4 . . . . . . . . . . . . Electromagnetic 89 | . 67 13 9 . . . . . . . . . . . . . . . . . Robot Hit Streak 18 | . 10 3 12 11 9 11 8 8 6 12 10 8 18 8 4 14 10 6 7 14 Robot Miss Streak 5 | . 3 2 4 3 2 4 3 2 2 2 2 3 5 3 1 1 1 3 2 3 Penetration Max 1 | . . . . . . . . . . . . 1 1 . . 1 . . . . Secondary Targets . | . . . . . . . . . . . . . . . . . . . . . Shots Hit Robots 842 | . 83 13 33 14 78 80 60 19 16 76 14 52 41 45 15 57 11 41 48 46 Core Hits 357 | . 35 12 15 3 31 42 30 33 6 24 2 22 17 8 9 23 1 10 23 11 Critical Kills 5 | . . . . . . 1 1 1 . 2 . . . . . . . . . . Critical Parts Destroyed . | . . . . . . . . . . . . . . . . . . . . . Critical Strikes 43 | . . . . . . 1 1 1 . 2 . 1 7 5 5 6 2 4 3 5 Meltdown 5 | . . . . . . 1 1 1 . 2 . . . . . . . . . . Blast 38 | . . . . . . . . . . . . 1 7 5 5 6 2 4 3 5 Melee Attacks 7 | . . . . . . . 4 . 3 . . . . . . . . . . . Impact . | . . . . . . . . . . . . . . . . . . . . . Slashing . | . . . . . . . . . . . . . . . . . . . . . Piercing . | . . . . . . . . . . . . . . . . . . . . . Sneak Attacks 5 | . . . . . . . 4 . 1 . . . . . . . . . . . Combat Hostiles . | . . . . . . . . . . . . . . . . . . . . . Follow-up Attacks . | . . . . . . . . . . . . . . . . . . . . . Damage Inflicted 32649 | . 1385 371 910 320 2109 3220 1607 1570 366 1950 228 1917 2847 2104 908 3004 287 1684 2887 2975 Guns 1272 | . 1114 84 . . . . . . . 74 . . . . . . . . . . Cannons 26877 | . . 190 700 305 1899 1820 1386 543 366 1872 228 1889 2202 2094 861 3004 287 1684 2589 2958 Explosions 4219 | . 222 59 209 . 198 1400 221 1027 . . . . 567 . 41 . . . 275 . Melee . | . . . . . . . . . . . . . . . . . . . . . Ramming 281 | . 49 38 1 15 12 . . . . 4 . 28 78 10 6 . . . 23 17 Kinetic 17187 | . 541 37 . . . . . . . 74 . 942 2202 2094 861 3004 287 1684 2589 2872 Thermal 11105 | . 222 93 600 305 1899 1820 1557 543 366 1872 228 947 567 . . . . . . 86 Explosive 2899 | . . . 183 . 198 1400 50 1027 . . . . . . 41 . . . . . Electromagnetic 1177 | . 573 203 126 . . . . . . . . . . . . . . . 275 . Impact . | . . . . . . . . . . . . . . . . . . . . . Slashing . | . . . . . . . . . . . . . . . . . . . . . Piercing . | . . . . . . . . . . . . . . . . . . . . . Highest Corruption 24 | . . . . . . . . 11 2 3 3 1 2 7 7 9 . . 5 24 Average Corruption 4 | . . . . . . . . 10 2 2 2 1 1 2 7 8 . . 3 23 Corruption Purged 3 | . . . . . . . . . . . 3 . . . . . . . . . Corruption Blocked . | . . . . . . . . . . . . . . . . . . . . . Effects 185 | . . . . . . . . 9 3 27 8 17 7 20 23 45 . . 10 16 Message Errors 46 | . . . . . . . . 2 . 5 1 5 3 8 5 9 . . 6 2 Matter Fused 35 | . . . . . . . . 3 . 5 2 2 1 2 6 8 . . 3 3 Heat Flow Errors 25 | . . . . . . . . . 1 4 1 4 1 2 4 7 . . 1 . Energy Discharges 21 | . . . . . . . . 1 . 1 2 2 . 1 4 8 . . . 2 Parts Rejected 2 | . . . . . . . . 1 . . . . . . . . . . . 1 Parts Fused 3 | . . . . . . . . . . 1 . . . . 1 1 . . . . Data Loss (minor) 17 | . . . . . . . . . . 3 2 . 1 3 1 5 . . . 2 Data Loss (major) 5 | . . . . . . . . 1 . 1 . 1 . . 1 1 . . . . Misfires 15 | . . . . . . . . 1 1 2 . 2 1 4 1 3 . . . . Alerts 6 | . . . . . . . . . 1 2 . 1 . . . 2 . . . . Misdirections 6 | . . . . . . . . . . . . . . . . . . . . 6 Weapon Failures 4 | . . . . . . . . . . 3 . . . . . 1 . . . . Overload Shots . | . . . . . . . . . . . . . . . . . . . . . Overflow Damage 2095 | . 1 2 22 12 37 122 . 51 3 51 11 70 591 158 32 326 . 24 270 312 Projectiles 1777 | . . 2 1 12 37 12 . 1 3 51 11 70 455 158 32 326 . 24 270 312 Explosions 308 | . 1 . 21 . . 110 . 50 . . . . 126 . . . . . . . Melee 10 | . . . . . . . . . . . . . 10 . . . . . . . Knockbacks 85 | . . . . . . . . . . . . 3 19 5 3 21 2 7 16 9 Impact 2 | . . . . . . . . . . . . . 2 . . . . . . . Kinetic 72 | . . . . . . . . . . . . 3 13 5 2 17 1 7 15 9 Secondary 11 | . . . . . . . . . . . . . 4 . 1 4 1 . 1 . Self-Inflicted Damage 204 | . 30 . . . 8 36 23 9 . . . 13 39 . . . . . 46 . Shots 6 | . 1 . . . 1 1 1 1 . . . . . . . . . . 1 . Rammed 27 | . 6 6 1 2 3 . . . . 1 . 3 2 . 1 . . . 1 1 Targets Rammed 31 | . 7 7 1 2 3 . . . . 1 . 3 2 1 1 . . . 1 2 Kicked . | . . . . . . . . . . . . . . . . . . . . . Crushed 4 | . 1 1 . . . . . . . . . . . 1 . . . . . 1 Highest Temperature 541 | . 86 140 237 294 386 304 541 425 180 385 192 267 136 258 256 282 20 47 191 355 Average Temperature 86 | . 24 44 83 163 119 128 148 136 83 123 112 66 24 37 70 75 7 16 56 119 Received Heat Transfer 4596 | . 190 24 76 72 351 540 297 216 12 375 36 218 40 222 45 443 33 126 160 1120 Effects 38 | . . . . . 10 8 10 3 . 2 . . . . 1 1 . . . 3 Shutdowns 4 | . . . . . . . 2 1 . 1 . . . . . . . . . . Energy Bleed 4 | . . . . . 1 2 . . . . . . . . 1 . . . . . Interference 25 | . . . . . 7 6 5 2 . 1 . . . . . 1 . . . 3 Matter Decay 2 | . . . . . 1 . 1 . . . . . . . . . . . . . Short Circuit 2 | . . . . . . . 2 . . . . . . . . . . . . . Damage (minor) 1 | . . . . . 1 . . . . . . . . . . . . . . . Siege Activations 10 | . . . . . . . . . . . . . . 3 1 5 1 . . . Total Turns 169 | . . . . . . . . . . . . . . 24 43 97 5 . . . Longest Duration 43 | . . . . . . . . . . . . . . 9 43 40 5 . . . Martial Activations . | . . . . . . . . . . . . . . . . . . . . . Shielding Activations . | . . . . . . . . . . . . . . . . . . . . . Robots Disrupted . | . . . . . . . . . . . . . . . . . . . . . Combat Hostiles . | . . . . . . . . . . . . . . . . . . . . . Robots Corrupted 2 | . . 1 . . . . . . . . . . 1 . . . . . . . Combat Hostiles 2 | . . 1 . . . . . . . . . . 1 . . . . . . . Parts Fried 3 | . . . . . . . . . . . . . 2 . . . . . 1 . Impact Corruptions 3 | . . . . . . . . . . . . . 2 . . . . . 1 . Robots Melted 7 | . . . . . 1 2 1 1 . 2 . . . . . . . . . . Combat Hostiles 7 | . . . . . 1 2 1 1 . 2 . . . . . . . . . . Parts Melted 38 | . . . 2 1 6 5 9 3 2 8 1 1 . . . . . . . . Heat Transferred 17717 | . 100 174 1086 555 3433 3514 2731 783 518 2758 296 1295 400 . . . . . . 74 Parts Sabotaged 3 | . . . . . . . . . . . . . . 1 . . . . . 2 Parts Stolen . | . . . . . . . . . . . . . . . . . . . . . Parts Stripped . | . . . . . . . . . . . . . . . . . . . . . Power Chain Reactions 5 | . 3 1 1 . . . . . . . . . . . . . . . . . Alert | -11 -10 -10 -9 -9 -8 -8 -8 -8 -7 -7 -7 -7 -6 -6 -6 -6 -5 -5 -4 -3 ------- Run | Yrd Mat Min Mat Min Mat Gar Mat Gar Fac Gar Fac Gar Fac Gar Fac Gar Fac Gar Fac Res Maximum Alert Level 5 | . . . 1 . . 3 2 2 1 3 2 4 3 5 3 4 3 5 5 5 Low Security (%) 26 | 100 100 100 67 100 100 20 . . 36 26 . . . . . . . . . . Level 1 9 | . . . 32 . . 27 21 33 63 12 43 6 . . . . . . . . Level 2 21 | . . . . . . 23 78 66 . 32 56 14 83 17 . 15 6 4 . . Level 3 21 | . . . . . . 27 . . . 28 . 46 16 48 100 29 93 16 25 . Level 4 11 | . . . . . . . . . . . . 31 . 28 . 54 . 36 12 . Level 5 5 | . . . . . . . . . . . . . . 5 . . . 41 6 34 High Security 4 | . . . . . . . . . . . . . . . . . . . 55 65 Max Security . | . . . . . . . . . . . . . . . . . . . . . Peak Influence 5216 | . 95 132 249 50 180 921 551 689 368 970 508 1292 844 1664 954 1376 930 2083 5216 3629 Initial 2738 | . . 17 23 10 . 109 448 323 361 75 508 234 678 590 873 587 722 623 1093 2738 Average 765 | . 29 53 128 16 76 482 450 523 224 534 416 918 598 979 891 1045 790 1464 2631 3043 Influence Increases 18355 | . 469 396 557 71 580 842 637 486 123 975 201 1298 831 1224 442 859 540 1670 4663 1491 Destroy 0b10 Robot/C 8200 | . 260 240 340 60 340 620 320 260 20 440 80 700 420 460 240 440 220 620 1720 400 Destroy 0b10 Robot/NC 360 | . 55 10 20 . 45 . 30 . 25 . 10 . 45 . 20 5 20 5 50 20 Destroy Leader 1152 | . 60 40 88 10 80 30 104 40 18 40 24 40 106 20 52 40 52 20 206 82 Allied During Kill 3782 | . . 58 93 1 . . . . . 2 41 164 72 318 74 7 242 644 1810 256 Trap Triggered on 0b10 30 | . . 30 . . . . . . . . . . . . . . . . . . Successful Hack 288 | . 31 . 7 . 28 12 23 12 29 48 46 . 17 . . 14 . 21 . . Disable Machine 645 | . 30 15 . . . 15 105 . 30 . . . 90 . 30 15 . . 270 45 Anti-Garrison Action 1900 | . . . . . . 50 . 100 . 300 . 350 . 400 . 250 . 300 150 . Destroy Structure 1023 | . 33 3 9 . 27 115 40 44 1 40 . 29 66 11 26 13 6 60 442 58 Partial Spotted 45 | . . . . . . . . . . . . . 15 . . . . . . 30 Lose Combat Pursuer 930 | . . . . . 60 . 15 30 . 105 . 15 . 15 . 75 . . 15 600 Influence Decreases 14726 | . 423 382 589 99 412 89 1061 294 704 113 836 341 1279 404 1267 322 1026 477 1530 3078 Entered New Map 8014 | . . 29 37 18 . 59 473 174 328 33 462 101 614 254 791 252 654 267 990 2478 Time Decay 4201 | . 423 333 362 60 392 . 428 . 356 . 334 . 565 . 326 . 302 . 160 160 Lost Part 560 | . . . . 10 20 30 10 110 . 30 . 30 . 30 10 20 . 10 20 230 Lost Ally 1651 | . . 20 40 11 . . . 10 20 50 40 210 100 120 140 50 70 200 360 210 Purge Threat 300 | . . . 150 . . . 150 . . . . . . . . . . . . . Squads Dispatched 76 | . 2 1 2 . 1 . 4 . 2 . 1 . 10 . 8 . 2 . 20 23 Investigation 3 | . 1 1 1 . . . . . . . . . . . . . . . . . Extermination 9 | . . . . . . . . . 2 . 1 . 3 . 1 . 1 . . 1 Reinforcement 17 | . 1 . 1 . . . 1 . . . . . 7 . 3 . 1 . 3 . Assault 38 | . . . . . . . . . . . . . . . . . . . 16 22 Garrison 9 | . . . . . 1 . 3 . . . . . . . 4 . . . 1 . Intercept . | . . . . . . . . . . . . . . . . . . . . . Searches Triggered . | . . . . . . . . . . . . . . . . . . . . . Construction Impeded 4 | . . . . . . . . . . . . . 2 . 1 . . . 1 . Haulers Reinforced 3 | . . . . . . . . . . . . . 1 . 1 . 1 . . . Active Scanning Responses . | . . . . . . . . . . . . . . . . . . . . . Cargo Convoy Interrupts 1 | . . . . . . . . . . . . . 1 . . . . . . . Stealth | -11 -10 -10 -9 -9 -8 -8 -8 -8 -7 -7 -7 -7 -6 -6 -6 -6 -5 -5 -4 -3 --------- Run | Yrd Mat Min Mat Min Mat Gar Mat Gar Fac Gar Fac Gar Fac Gar Fac Gar Fac Gar Fac Res Distress Signals 16 | . 2 . 1 . 3 . . . . . . . 2 . 1 . . . 3 4 Communications Jammed . | . . . . . . . . . . . . . . . . . . . . . Distress Signals . | . . . . . . . . . . . . . . . . . . . . . Times Spotted 632 | . 28 11 21 3 26 27 19 17 4 29 11 44 33 41 14 43 15 55 89 102 Peak Tracking Total 29 | . 3 3 5 3 4 4 3 16 1 7 2 6 4 7 5 7 4 9 14 29 Tactical Retreats 24 | . 2 . . . 3 . 1 1 . 3 . 1 . 1 . 3 . . 1 8 Traps | -11 -10 -10 -9 -9 -8 -8 -8 -8 -7 -7 -7 -7 -6 -6 -6 -6 -5 -5 -4 -3 ------- Run | Yrd Mat Min Mat Min Mat Gar Mat Gar Fac Gar Fac Gar Fac Gar Fac Gar Fac Gar Fac Res Traps Triggered 43 | . 1 . 1 . . 3 2 2 1 8 . 6 . 10 . 1 . 8 . . Indirectly . | . . . . . . . . . . . . . . . . . . . . . Trap Hack Attempts . | . . . . . . . . . . . . . . . . . . . . . Triggered . | . . . . . . . . . . . . . . . . . . . . . Disarmed . | . . . . . . . . . . . . . . . . . . . . . Reprogrammed . | . . . . . . . . . . . . . . . . . . . . . Reused 3 | . . 3 . . . . . . . . . . . . . . . . . . Traps Extracted . | . . . . . . . . . . . . . . . . . . . . . Installed 5 | . . 5 . . . . . . . . . . . . . . . . . . Triggered 3 | . . 3 . . . . . . . . . . . . . . . . . . Machines | -11 -10 -10 -9 -9 -8 -8 -8 -8 -7 -7 -7 -7 -6 -6 -6 -6 -5 -5 -4 -3 ---------- Run | Yrd Mat Min Mat Min Mat Gar Mat Gar Fac Gar Fac Gar Fac Gar Fac Gar Fac Gar Fac Res Machines Disabled 76 | . 2 1 . . . 2 7 2 2 3 . 7 6 8 2 4 . 8 19 3 Max in Single Turn 3 | . 1 1 . . . 1 2 1 1 1 . 1 3 1 2 1 . 1 2 1 Garrison Access 1 | . . . . . . . . . . . . . . . . . . . 1 . Garrison Relay 26 | . . . . . . 1 . 2 . 3 . 5 . 7 . 3 . 5 . . Machines Repaired . | . . . . . . . . . . . . . . . . . . . . . Machines Dismantled . | . . . . . . . . . . . . . . . . . . . . . Machines Sabotaged . | . . . . . . . . . . . . . . . . . . . . . Overloaded Fab Kills . | . . . . . . . . . . . . . . . . . . . . . Hacking | -11 -10 -10 -9 -9 -8 -8 -8 -8 -7 -7 -7 -7 -6 -6 -6 -6 -5 -5 -4 -3 --------- Run | Yrd Mat Min Mat Min Mat Gar Mat Gar Fac Gar Fac Gar Fac Gar Fac Gar Fac Gar Fac Res Machines Accessed 73 | . 7 1 5 . 7 4 8 1 6 3 8 3 8 1 3 2 3 3 . . Terminals 47 | . 4 . 4 . 3 4 5 1 2 3 3 3 6 1 1 2 2 3 . . Fabricators 3 | . . . . . . . . . 1 . 2 . . . . . . . . . Repair Stations 5 | . 1 . . . 1 . 1 . . . 1 . 1 . . . . . . . Recycling Units 4 | . 2 . . . 1 . . . . . 1 . . . . . . . . . Scanalyzers 6 | . . . 1 . 1 . 1 . 2 . . . . . 1 . . . . . Garrison Access 7 | . . . . . 1 . 1 . 1 . 1 . 1 . 1 . 1 . . . Total Hacks 158 | . 18 1 15 . 20 8 23 1 11 5 13 6 12 2 3 5 9 6 . . Successful 85 | . 8 1 11 . 14 1 18 1 4 4 10 1 5 . 1 1 3 2 . . Failed 71 | . 10 . 3 . 6 7 5 . 6 1 3 5 7 2 2 4 6 4 . . Catastrophic 11 | . . . . . . 2 . . . 1 . 1 1 1 2 1 1 1 . . Database Lockouts 2 | . . . 1 . . . . . 1 . . . . . . . . . . . Manual 39 | . 2 . 1 . 10 . 8 . 1 1 4 . 4 . . . 8 . . . Terminals 112 | . 12 . 13 . 12 8 14 1 3 5 6 6 10 2 1 5 8 6 . . Fabricators 5 | . . . . . . . . . 2 . 3 . . . . . . . . . Repair Stations 11 | . 3 . . . 2 . 4 . . . 1 . 1 . . . . . . . Recycling Units 6 | . 3 . . . 2 . . . . . 1 . . . . . . . . . Scanalyzers 14 | . . . 2 . 2 . 4 . 5 . . . . . 1 . . . . . Garrison Access 9 | . . . . . 2 . 1 . 1 . 2 . 1 . 1 . 1 . . . Terminal Hacks 41 | . 4 1 9 . 4 1 8 1 1 3 2 1 2 . . 1 1 2 . . Record 4 | . 1 . 3 . . . . . . . . . . . . . . . . . Robot Analysis 2 | . . . 1 . . . . . 1 . . . . . . . . . . . Prototype ID Bank 9 | . . . 3 . 2 . 1 . . . 2 . 1 . . . . . . . Open Door 3 | . . 1 . . . . . . . . . 1 . . . . . 1 . . Branch Access Points 1 | . . . 1 . . . . . . . . . . . . . . . . . Emergency Access Points 5 | . . . . . . 1 1 . . 1 . . . . . 1 . 1 . . Terminal Index 3 | . 1 . . . . . 1 . . . . . . . . . 1 . . . Scanalyzer Index 2 | . 1 . . . . . 1 . . . . . . . . . . . . . Garrison Index 2 | . . . . . 1 . . . . . . . 1 . . . . . . . Alert Level 2 | . . . . . 1 . 1 . . . . . . . . . . . . . Unreport Threat 2 | . . . 1 . . . 1 . . . . . . . . . . . . . Investigation Status 1 | . . . . . . . 1 . . . . . . . . . . . . . Hauler Manifests 1 | . . . . . . . 1 . . . . . . . . . . . . . Zone Layout 1 | . 1 . . . . . . . . . . . . . . . . . . . Patrol Navigation 1 | . . . . . . . . . . 1 . . . . . . . . . . Security Stations 2 | . . . . . . . . 1 . 1 . . . . . . . . . . Fabricator Hacks 2 | . . . . . . . . . 1 . 1 . . . . . . . . . Build 2 | . . . . . . . . . 1 . 1 . . . . . . . . . Repair Station Hacks 7 | . 2 . . . 2 . 3 . . . . . . . . . . . . . Scan Component 4 | . 1 . . . 1 . 2 . . . . . . . . . . . . . Repair 3 | . 1 . . . 1 . 1 . . . . . . . . . . . . . Recycling Unit Hacks 3 | . 1 . . . 1 . . . . . 1 . . . . . . . . . Retrieve Components 3 | . 1 . . . 1 . . . . . 1 . . . . . . . . . Scanalyzer 7 | . . . 2 . 1 . 3 . 1 . . . . . . . . . . . Retrieve Study 7 | . . . 2 . 1 . 3 . 1 . . . . . . . . . . . Garrison Access Hacks 8 | . . . . . 1 . 1 . 1 . 2 . 1 . 1 . 1 . . . Unlock Access 7 | . . . . . 1 . 1 . 1 . 1 . 1 . 1 . 1 . . . Coupler Status 1 | . . . . . . . . . . . 1 . . . . . . . . . Unauthorized Hacks 17 | . 1 . . . 5 . 3 . . 1 4 . 2 . . . 1 . . . Terminals 12 | . 1 . . . 4 . 3 . . 1 1 . 1 . . . 1 . . . Assimilate 1 | . . . . . . . . . . . 1 . . . . . . . . . Botnet 10 | . 1 . . . 3 . 3 . . 1 . . 1 . . . 1 . . . Disrupt 1 | . . . . . 1 . . . . . . . . . . . . . . . Fabricators 2 | . . . . . . . . . . . 2 . . . . . . . . . Liberate 2 | . . . . . . . . . . . 2 . . . . . . . . . Repair Stations 2 | . . . . . . . . . . . 1 . 1 . . . . . . . Mechanics 2 | . . . . . . . . . . . 1 . 1 . . . . . . . Recycling Units . | . . . . . . . . . . . . . . . . . . . . . Scanalyzers . | . . . . . . . . . . . . . . . . . . . . . Garrison Access 1 | . . . . . 1 . . . . . . . . . . . . . . . Restock 1 | . . . . . 1 . . . . . . . . . . . . . . . Data Cores Recovered 2 | . 1 . . . . . . . . . . . . . . . 1 . . . Used 1 | . . . . . . . . . . . . . . . . . 1 . . . Hacking Detections 62 | . 5 . 4 . 7 4 8 . 5 3 8 2 6 1 2 2 2 3 . . Full Trace Events 2 | . 1 . . . . . . . . 1 . . . . . . . . . . Feedback Events 1 | . . . . . . . . . . 1 . . . . . . . . . . Corruption 1 | . . . . . . . . . . 1 . . . . . . . . . . Feedback Blocked . | . . . . . . . . . . . . . . . . . . . . . Robot Schematics Acquired . | . . . . . . . . . . . . . . . . . . . . . Robots Built 5 | . . . . . . . . . 1 . 4 . . . . . . . . . Authchips . | . . . . . . . . . . . . . . . . . . . . . Time 125 | . . . . . . . . . 58 . 67 . . . . . . . . . Total Robot Build Rating 19 | . . . . . . . . . 3 . 16 . . . . . . . . . Part Schematics Acquired . | . . . . . . . . . . . . . . . . . . . . . Parts Built . | . . . . . . . . . . . . . . . . . . . . . Authchips . | . . . . . . . . . . . . . . . . . . . . . Time . | . . . . . . . . . . . . . . . . . . . . . Total Part Build Rating . | . . . . . . . . . . . . . . . . . . . . . Part Studies Acquired 7 | . . . 2 . 1 . 3 . 1 . . . . . . . . . . . Parts Repaired 3 | . 1 . . . 1 . 1 . . . . . . . . . . . . . Time 96 | . 26 . . . 26 . 44 . . . . . . . . . . . . . Parts Recycled . | . . . . . . . . . . . . . . . . . . . . . Recycled Matter . | . . . . . . . . . . . . . . . . . . . . . Retrieved Matter . | . . . . . . . . . . . . . . . . . . . . . Retrieved Components 8 | . 3 . . . 2 . . . . . 3 . . . . . . . . . Parts Scanalyzed . | . . . . . . . . . . . . . . . . . . . . . Part Schematics Acquired . | . . . . . . . . . . . . . . . . . . . . . Parts Damaged . | . . . . . . . . . . . . . . . . . . . . . Bothacking | -11 -10 -10 -9 -9 -8 -8 -8 -8 -7 -7 -7 -7 -6 -6 -6 -6 -5 -5 -4 -3 ------------ Run | Yrd Mat Min Mat Min Mat Gar Mat Gar Fac Gar Fac Gar Fac Gar Fac Gar Fac Gar Fac Res Used RIF Installer 9 | . . . . . . 1 . 1 . 1 . 2 . 1 . 2 . 1 . . Coupler Efficiency 1 | . . . . . . . . . . . . . . . . 1 . . . . Command Fork 2 | . . . . . . . . . . . . 1 . . . 1 . . . . Zone Cloak 1 | . . . . . . . . . . 1 . . . . . . . . . . Robot Detection 1 | . . . . . . . . . . . . . . 1 . . . . . . Patrol Navigation 1 | . . . . . . . . . . . . . . . . . . 1 . . Structural Interface 1 | . . . . . . . . . . . . 1 . . . . . . . . Program Shield 1 | . . . . . . . . 1 . . . . . . . . . . . . Robots Hacked 110 | . . . . . . . 4 . 2 5 5 7 10 16 5 13 6 16 12 9 Non-combat 25 | . . . . . . . 4 . 2 1 1 . 6 . 2 . 2 . 3 4 Combat 85 | . . . . . . . . . . 4 4 7 4 16 3 13 4 16 9 5 Robot Hacks Applied 112 | . . . . . . . 4 . 3 5 5 7 10 16 5 13 6 17 12 9 parse_system 5 | . . . . . . . . . . . . 1 . 1 . . . 1 2 . drop_inventory 6 | . . . . . . . 1 . 1 . . . 2 . 1 . 1 . . . ignore_parts 1 | . . . . . . . 1 . . . . . . . . . . . . . block_reporting 1 | . . . . . . . . . 1 . . . . . . . . . . . map_route 2 | . . . . . . . . . . . . . . . . . . . . 2 redirect_shields 1 | . . . . . . . . . . . . . . . . . . . . 1 find_garrison 1 | . . . . . . . . . . . 1 . . . . . . . . . disrupt_area 5 | . . . . . . . . . . . . 1 . . . 1 . 3 . . amplify_resonance 17 | . . . . . . . . . . 1 1 2 1 5 1 2 . 2 2 . overwrite_iff 5 | . . . . . . . . . . . . . . 1 . 1 . . 3 . formatsys_low 12 | . . . . . . . 2 . 1 1 1 . 2 . 1 . 1 . 2 1 formatsys_high 55 | . . . . . . . . . . 3 2 3 5 9 2 9 4 11 3 4 formatsys_deep 1 | . . . . . . . . . . . . . . . . . . . . 1 Relay Couplers Released 104 | . . . . . 3 4 . 6 . 14 . 18 . 27 . 12 . 20 . . Machine Destruction 101 | . . . . . . 4 . 6 . 14 . 18 . 27 . 12 . 20 . . Programmers 3 | . . . . . 3 . . . . . . . . . . . . . . . Attached 59 | . . . . . . . 1 . 1 7 1 7 3 11 1 8 1 7 4 7 Fabnet Peak Effective % . | . . . . . . . . . . . . . . . . . . . . . Robots Rewired 4 | . . . . . . . . . . 1 . . . 1 . . . 2 . . Allies Hacked 3 | . . . . . . . . 1 . . . 1 . . . . . . . 1 Hacks Repelled . | . . . . . . . . . . . . . . . . . . . . . Allies | -11 -10 -10 -9 -9 -8 -8 -8 -8 -7 -7 -7 -7 -6 -6 -6 -6 -5 -5 -4 -3 -------- Run | Yrd Mat Min Mat Min Mat Gar Mat Gar Fac Gar Fac Gar Fac Gar Fac Gar Fac Gar Fac Res Total Allies 118 | . . 5 . . . . 2 . 2 5 8 5 9 14 3 13 7 23 13 9 Largest Group 25 | . . 5 4 1 . . 2 2 3 3 9 9 7 9 6 10 14 22 25 12 Highest-Rated Group 1354 | . . 81 71 16 . . 24 24 65 76 185 185 159 343 179 248 419 1112 1354 761 Highest-Rated Ally 148 | . . 31 31 16 . . 14 14 26 32 32 32 40 99 32 47 41 148 148 148 Total Orders 24 | . . . . . . . 1 1 1 2 2 2 1 . 2 . 1 6 3 2 STAY 5 | . . . . . . . . . . 1 . . . . 1 . . 3 . . ROAM 1 | . . . . . . . . . . . . . . . . . . 1 . . FOLLOW 1 | . . . . . . . . . . . . . . . 1 . . . . . AID 17 | . . . . . . . 1 1 1 1 2 2 1 . . . 1 2 3 2 Ally Attacks 1091 | . . 19 42 2 . . . . . 7 44 81 36 74 29 16 97 174 384 86 Total Damage 32707 | . . 161 483 30 . . . . . 64 436 1809 1226 2101 921 295 1648 4442 15747 3344 Kills 203 | . . 4 6 . . . . . . . 5 16 10 12 8 . 14 25 91 12 Allies Corrupted 6 | . . . . . . . . . . . . . . . . . 1 . 1 4 Allies Melted 2 | . . . . . . . . . . . . . . 1 . 1 . . . . Intel | -11 -10 -10 -9 -9 -8 -8 -8 -8 -7 -7 -7 -7 -6 -6 -6 -6 -5 -5 -4 -3 ------- Run | Yrd Mat Min Mat Min Mat Gar Mat Gar Fac Gar Fac Gar Fac Gar Fac Gar Fac Gar Fac Res Active Infowar (turns) 4557 | . . . 770 169 1050 7 . . 793 1219 . . . . . . . . . 549 Optics 4550 | . . . 770 169 1050 . . . 793 1219 . . . . . . . . . 549 Structural 9 | . . . . . . 7 . . . 2 . . . . . . . . . . Robot Analysis Total 2 | . . . 1 . . . . . 1 . . . . . . . . . . . Derelict Logs Recovered 2 | . . 2 . . . . . . . . . . . . . . . . . . Drone Launches . | . . . . . . . . . . . . . . . . . . . . . Drone Recoveries . | . . . . . . . . . . . . . . . . . . . . . Exploration | -11 -10 -10 -9 -9 -8 -8 -8 -8 -7 -7 -7 -7 -6 -6 -6 -6 -5 -5 -4 -3 ------------- Run | Yrd Mat Min Mat Min Mat Gar Mat Gar Fac Gar Fac Gar Fac Gar Fac Gar Fac Gar Fac Res Turns Passed 22023 | 52 1712 1024 826 169 1378 1184 1041 545 813 1514 742 1722 1697 1497 724 1434 666 1595 737 951 Spaces Moved 12465 | 40 881 593 437 80 605 761 636 300 575 846 557 1034 1052 803 342 652 291 923 354 703 Core 315 | 17 . . . . . . . . . . . . . . . . . . . 298 Treads 4102 | . 820 593 437 80 557 . . . . . . . . 397 342 652 220 . . 4 Legs 84 | 23 61 . . . . . . . . . . . . . . . . . . . Wheels 7964 | . . . . . 48 761 636 300 575 846 557 1034 1052 406 . . 71 923 354 401 Hover . | . . . . . . . . . . . . . . . . . . . . . Flight . | . . . . . . . . . . . . . . . . . . . . . Fastest Speed 50 | 50 120 160 160 160 125 110 95 125 125 120 120 120 130 115 175 175 130 130 130 50 Average Speed 141 | 92 157 160 160 160 169 114 122 129 125 133 120 138 134 151 175 175 205 130 137 103 Slowest Speed 270 | 150 160 160 160 160 243 125 230 215 140 140 120 160 135 270 260 175 260 130 145 270 Overloaded Moves . | . . . . . . . . . . . . . . . . . . . . . Propulsion Burnouts . | . . . . . . . . . . . . . . . . . . . . . Robots Hopped . | . . . . . . . . . . . . . . . . . . . . . Potential Cave-ins . | . . . . . . . . . . . . . . . . . . . . . Cave-ins Triggered . | . . . . . . . . . . . . . . . . . . . . . Exploration Rate (%) 50 | 4 95 95 46 17 47 89 50 39 17 73 19 93 36 91 9 90 11 98 16 30 Regions Visited 20 Branch Regions 2 Pre-discovered Areas . | . . . . . . . . . . . . . . . . . . . . . Known Exits Taken 8 | . . . 1 . 1 . 1 . 1 . 1 . 1 . 1 . 1 . . . Unknown Exits Taken 5 | 1 1 1 . 1 . . . . . . . . . . . . . . 1 . Scrap Searched 2 | . . 1 . 1 . . . . . . . . . . . . . . . . Spaces Dug 45 | . . . 6 . 16 7 . . 1 . . . 4 3 3 . . . 4 1 Terrain Destroyed 398 | . 29 3 9 . 26 57 53 10 1 . . 6 67 13 38 13 3 11 52 7 Melee . | . . . . . . . . . . . . . . . . . . . . . Projectile 125 | . . . . . 9 . 20 1 1 . . 6 24 13 4 13 3 11 13 7 AOE 273 | . 29 3 9 . 17 57 33 9 . . . . 43 . 34 . . . 39 . Terrain Rammed . | . . . . . . . . . . . . . . . . . . . . . Walls Destroyed . | . . . . . . . . . . . . . . . . . . . . . Machines Disabled . | . . . . . . . . . . . . . . . . . . . . . Actions | -11 -10 -10 -9 -9 -8 -8 -8 -8 -7 -7 -7 -7 -6 -6 -6 -6 -5 -5 -4 -3 --------- Run | Yrd Mat Min Mat Min Mat Gar Mat Gar Fac Gar Fac Gar Fac Gar Fac Gar Fac Gar Fac Res Total 15568 | 52 1076 642 515 100 849 945 821 418 647 1110 613 1234 1256 1018 440 863 347 1248 524 850 Wait 1385 | . 101 12 27 7 123 74 97 46 20 121 33 27 96 64 69 109 31 190 92 46 Move 12451 | 39 880 592 436 79 604 760 636 299 575 845 557 1033 1052 802 342 651 291 922 353 703 Hop . | . . . . . . . . . . . . . . . . . . . . . Pick Up 160 | 7 11 3 5 1 19 3 13 5 11 15 2 18 10 9 . 10 1 13 2 2 Fast Attach 61 | 5 1 2 2 . 6 3 2 3 3 3 . 4 3 7 2 4 1 3 1 6 Attach 86 | 1 . . 1 1 5 4 2 14 3 5 1 6 3 6 1 7 4 6 3 13 Detach 16 | . . . . . 3 . 1 5 . 2 . . . 1 . 1 2 . 1 . Swap 131 | . 5 1 6 . 15 10 17 8 7 19 2 11 4 10 . 2 2 2 4 6 Drop 145 | . 4 5 8 . 18 3 12 4 13 7 2 22 15 9 1 7 2 6 . 7 Fire 914 | . 67 15 29 10 53 80 36 26 11 71 16 61 67 67 24 70 13 68 67 63 Melee 7 | . . . . . . . 4 . 3 . . . . . . . . . . . Ram 6 | . . . . . . . . . . . . 3 2 . . . . . 1 . Kick . | . . . . . . . . . . . . . . . . . . . . . Crush 25 | . 7 7 1 2 3 . . . . 1 . . . 1 1 . . . . 2 Escape Stasis 164 | . . . . . . 8 . 8 . 20 . 48 . 40 . . . 38 . 2 Rewire 12 | . . . . . . . 1 . 1 1 . 1 4 2 . 2 . . . . Trap 5 | . . 5 . . . . . . . . . . . . . . . . . . Miscellaneous . | . . . . . . . . . . . . . . . . . . . . . Route ------- -11/Scrapyard -10/Materials (discovered 5 exits: *Mat x2 / *Min x2 / [*Sub]) -10/Mines (discovered 3 exits: *Mat x2 / [*Exi]) -9/Materials -9/Mines -8/Materials (discovered 2 exits: *Fac / Gar) -8/Garrison (discovered 4 exits: *Mat x4) -8/Materials (discovered 2 exits: *Fac / Gar) -8/Garrison -7/Factory (discovered 3 exits: *Sto / [*Low] / Gar) -7/Garrison (discovered 3 exits: *Fac x3) -7/Factory -7/Garrison (discovered 3 exits: *Fac x3) -6/Factory (discovered 3 exits: *Fac / [*Low] / Gar) -6/Garrison (discovered 3 exits: *Fac x3) -6/Factory -6/Garrison (discovered 3 exits: *Fac x3) -5/Factory (discovered 2 exits: [*Upp] / Gar) -5/Garrison (discovered 3 exits: [*Fac x3]) -4/Factory -3/Research History --------- Turn | Location | Event 19 | -11/Scrapyard | Discovered new exit (range 16) 53 | -11/Scrapyard | Entered Materials 284 | -10/Materials | Discovered new exit (range 7) 311 | -10/Materials | Build established: Mutant 330 | -10/Materials | Discovered new exit (range 5) 491 | -10/Materials | Discovered new exit (range 15) 702 | -10/Materials | Discovered new exit (range 13) 753 | -10/Materials | Derelicts attacked the area 1176 | -10/Materials | Discovered new exit (range 9) 1392 | -10/Materials | Repaired Huge Storage Unit 1765 | -10/Materials | Entered Mines 1851 | -10/Mines | Met a Derelict bent on vengeance 1882 | -10/Mines | Learned Materials emergency access door positions 1938 | -10/Mines | Assisted by bots powering up and referring to "LRC-V3" 1999 | -10/Mines | Deemed a non-threat by the Exiles lab entrance 1999 | -10/Mines | Discovered new exit (range 5) 2083 | -10/Mines | Discovered new exit (range 6) 2190 | -10/Mines | Met a Derelict shopkeep closing up shop 2338 | -10/Mines | Found a hidden stash of uninstalled traps 2398 | -10/Mines | Discovered new exit (range 11) 2495 | -10/Mines | Excavation squad dispatched 2495 | -10/Mines | A large section of the Mines collapsed 2789 | -10/Mines | Entered Materials 2789 | -9/Materials | Accompanied by 4 allies 2789 | -9/Materials | Evolved 2 slots: Utility x2 2795 | -9/Materials | Led the pair of lost Derelicts to an unsafe place 3205 | -9/Materials | Identified exit to Mines 3205 | -9/Materials | Central database locked down 3615 | -9/Materials | Entered Mines 3615 | -9/Mines | Accompanied by 1 ally 3702 | -9/Mines | A weapon hastily lodged in a ceiling crevice suddenly fell to the ground 3707 | -9/Mines | Discovered new exit (range 8) 3784 | -9/Mines | Entered Materials 3784 | -8/Materials | Evolved 2 slots: Propulsion x1, Weapon x1 4075 | -8/Materials | Discovered new exit (range 9) 4128 | -8/Materials | Repaired Grenade Launcher 4758 | -8/Materials | Build established: Skirmisher 4789 | -8/Materials | Garrison activated, responded to threat 5046 | -8/Materials | Identified exit to Garrison 5162 | -8/Materials | Entered Garrison 5208 | -8/Garrison | Triggered checkpoint 5521 | -8/Garrison | Discovered new exit (range 14) 5588 | -8/Garrison | Triggered checkpoint 5726 | -8/Garrison | Triggered checkpoint 5734 | -8/Garrison | Triggered checkpoint 5794 | -8/Garrison | Triggered checkpoint 5828 | -8/Garrison | Triggered checkpoint 5844 | -8/Garrison | Discovered new exit (range 5) 5871 | -8/Garrison | Destroyed 7 combat bots 5894 | -8/Garrison | Discovered new exit (range 14) 5928 | -8/Garrison | Build established: Tank 6102 | -8/Garrison | Triggered checkpoint 6156 | -8/Garrison | Triggered checkpoint 6251 | -8/Garrison | Installed Relay Interface Framework 6261 | -8/Garrison | Garrison Relay disabled 6292 | -8/Garrison | Discovered new exit (range 12) 6346 | -8/Garrison | Entered Materials 6397 | -8/Materials | Repaired Plasma Cannon? 6706 | -8/Materials | Core integrity fell below 50% 6948 | -8/Materials | Discovered new exit (range 8) 7039 | -8/Materials | Build established: Bothacker-Tank 7187 | -8/Materials | Garrison activated, responded to threat 7387 | -8/Materials | Identified exit to Garrison 7387 | -8/Materials | Entered Garrison 7387 | -8/Garrison | Accompanied by 2 allies 7455 | -8/Garrison | Triggered checkpoint 7507 | -8/Garrison | Expanded RIF knowledge: Program Shield 7540 | -8/Garrison | Garrison Relay disabled 7570 | -8/Garrison | Learned Factory security intel 7606 | -8/Garrison | Garrison Relay disabled 7651 | -8/Garrison | Triggered checkpoint 7673 | -8/Garrison | Core integrity fell below 20% 7716 | -8/Garrison | System corruption reached 10% 7741 | -8/Garrison | Destroyed 13 combat bots 7743 | -8/Garrison | Lost 11 parts (1p3n4u3w) 7899 | -8/Garrison | Discovered new exit (range 9) 7932 | -8/Garrison | Entered Factory 7932 | -7/Factory | Accompanied by 1 ally 7932 | -7/Factory | Evolved 2 slots: Utility x2 7933 | -7/Factory | Identified exit to Storage 8300 | -7/Factory | Fabricated O-24 Administrator (x1) 8314 | -7/Factory | Central database locked down 8390 | -7/Factory | Discovered new exit (range 20) 8745 | -7/Factory | Identified exit to Garrison 8745 | -7/Factory | Entered Garrison 8745 | -7/Garrison | Accompanied by 1 ally 8776 | -7/Garrison | Expanded RIF knowledge: Zone Cloak 8881 | -7/Garrison | Triggered checkpoint 9076 | -7/Garrison | Discovered new exit (range 8) 9137 | -7/Garrison | Triggered checkpoint 9260 | -7/Garrison | Garrison Relay disabled 9432 | -7/Garrison | Discovered new exit (range 13) 9437 | -7/Garrison | Learned Factory security intel 9639 | -7/Garrison | Triggered checkpoint 9660 | -7/Garrison | Garrison Relay disabled 9851 | -7/Garrison | Triggered checkpoint 9862 | -7/Garrison | Garrison Relay disabled 10115 | -7/Garrison | Triggered checkpoint 10125 | -7/Garrison | Discovered new exit (range 11) 10259 | -7/Garrison | Entered Factory 10259 | -7/Factory | Accompanied by 3 allies 10323 | -7/Factory | Build established: Bothacker-Gunner 10643 | -7/Factory | Fabricated S-27 Virus? 10989 | -7/Factory | Identified exit to Garrison 11001 | -7/Factory | Entered Garrison 11001 | -7/Garrison | Accompanied by 9 allies 11020 | -7/Garrison | Garrison Relay disabled 11071 | -7/Garrison | Triggered checkpoint 11115 | -7/Garrison | Lost 5 allies 11121 | -7/Garrison | Garrison Relay disabled 11231 | -7/Garrison | Triggered checkpoint 11232 | -7/Garrison | Triggered checkpoint 11323 | -7/Garrison | Discovered new exit (range 3) 11347 | -7/Garrison | Triggered checkpoint 11383 | -7/Garrison | Garrison Relay disabled 11443 | -7/Garrison | Expanded RIF knowledge: Structural Interface 11740 | -7/Garrison | Build established: Botlord-Tank 11751 | -7/Garrison | Triggered checkpoint 11873 | -7/Garrison | Rescued a captive Derelict 11874 | -7/Garrison | Rescued a captive Derelict 11880 | -7/Garrison | Discovered new exit (range 12) 11883 | -7/Garrison | Triggered checkpoint 11923 | -7/Garrison | Garrison Relay disabled 12140 | -7/Garrison | Discovered new exit (range 10) 12185 | -7/Garrison | Expanded RIF knowledge: Command Fork 12239 | -7/Garrison | Triggered checkpoint 12723 | -7/Garrison | Entered Factory 12723 | -6/Factory | Accompanied by 1 ally 12723 | -6/Factory | Evolved 2 slots: Propulsion x1, Utility x1 13034 | -6/Factory | Discovered new exit (range 16) 13050 | -6/Factory | Discovered new exit (range 13) 14016 | -6/Factory | Cargo convoy interrupted 14420 | -6/Factory | Identified exit to Garrison 14420 | -6/Factory | Entered Garrison 14662 | -6/Garrison | Expanded RIF knowledge: Robot Detection 14675 | -6/Garrison | Garrison Relay disabled 14728 | -6/Garrison | Triggered checkpoint 14740 | -6/Garrison | Triggered checkpoint 14829 | -6/Garrison | Garrison Relay disabled 14840 | -6/Garrison | Triggered checkpoint 14863 | -6/Garrison | Discovered new exit (range 2) 14946 | -6/Garrison | Triggered checkpoint 14962 | -6/Garrison | Triggered checkpoint 15039 | -6/Garrison | Spotted B-75 Beast 15059 | -6/Garrison | Allies destroyed B-75 Beast 15144 | -6/Garrison | Discovered new exit (range 10) 15224 | -6/Garrison | Garrison Relay disabled 15285 | -6/Garrison | Spotted Executioner 15302 | -6/Garrison | Destroyed Executioner 15322 | -6/Garrison | Rewired Striker 15386 | -6/Garrison | Garrison Relay disabled 15391 | -6/Garrison | Garrison Relay disabled 15413 | -6/Garrison | Garrison Relay disabled 15432 | -6/Garrison | Garrison Relay disabled 15678 | -6/Garrison | Triggered checkpoint 15754 | -6/Garrison | Discovered new exit (range 13) 15828 | -6/Garrison | Spotted B-75 Beast 15842 | -6/Garrison | Allies destroyed B-75 Beast 15917 | -6/Garrison | Entered Factory 15917 | -6/Factory | Accompanied by 6 allies 16211 | -6/Factory | Garrison activated, responded to threat 16598 | -6/Factory | Garrison activated, responded to threat 16627 | -6/Factory | Identified exit to Garrison 16641 | -6/Factory | Entered Garrison 16641 | -6/Garrison | Accompanied by 1 ally 16655 | -6/Garrison | Lost 5 allies 16753 | -6/Garrison | Triggered checkpoint 16868 | -6/Garrison | Triggered checkpoint 16923 | -6/Garrison | Triggered checkpoint 17133 | -6/Garrison | Discovered new exit (range 2) 17167 | -6/Garrison | Expanded RIF knowledge: Coupler Efficiency 17231 | -6/Garrison | Garrison Relay disabled 17593 | -6/Garrison | Discovered new exit (range 15) 17625 | -6/Garrison | Expanded RIF knowledge: Command Fork 17669 | -6/Garrison | Triggered checkpoint 17694 | -6/Garrison | Garrison Relay disabled 17793 | -6/Garrison | Triggered checkpoint 17861 | -6/Garrison | Triggered checkpoint 17894 | -6/Garrison | Discovered new exit (range 12) 17954 | -6/Garrison | Garrison Relay disabled 18075 | -6/Garrison | Entered Factory 18075 | -5/Factory | Accompanied by 10 allies 18075 | -5/Factory | Evolved 2 slots: Utility x2 18698 | -5/Factory | Discovered new exit (range 15) 18740 | -5/Factory | Identified exit to Garrison 18741 | -5/Factory | Entered Garrison 18741 | -5/Garrison | Accompanied by 12 allies 18787 | -5/Garrison | Triggered checkpoint 18816 | -5/Garrison | Garrison Relay disabled 18872 | -5/Garrison | Garrison Relay disabled 18918 | -5/Garrison | Triggered checkpoint 18943 | -5/Garrison | Triggered checkpoint 19095 | -5/Garrison | Triggered checkpoint 19181 | -5/Garrison | Triggered checkpoint 19233 | -5/Garrison | Triggered checkpoint 19285 | -5/Garrison | Triggered checkpoint 19307 | -5/Garrison | Garrison Relay disabled 19327 | -5/Garrison | Expanded RIF knowledge: Patrol Navigation 19379 | -5/Garrison | Discovered new exit (range 11) 19507 | -5/Garrison | Rewired Executioner 19535 | -5/Garrison | Discovered new exit (range 11) 19541 | -5/Garrison | Triggered checkpoint 19576 | -5/Garrison | Garrison Relay disabled 19629 | -5/Garrison | Spotted B-75 Beast 19631 | -5/Garrison | Spotted B-75 Beast 19634 | -5/Garrison | Rewired B-90 Cyclops 19658 | -5/Garrison | Allies destroyed B-75 Beast 19666 | -5/Garrison | Allies destroyed B-75 Beast 19772 | -5/Garrison | Found Relay Coupler [Proto] 19791 | -5/Garrison | Lost 3 allies 19967 | -5/Garrison | Discovered new exit (range 11) 19979 | -5/Garrison | Triggered checkpoint 20011 | -5/Garrison | Garrison Relay disabled 20030 | -5/Garrison | Rescued a captive Derelict 20032 | -5/Garrison | Rescued a captive Derelict 20040 | -5/Garrison | Found embedded Infiltrators 20336 | -5/Garrison | Entered Factory 20336 | -4/Factory | Accompanied by 22 allies 20336 | -4/Factory | Evolved 2 slots: Power x1, Utility x1 20666 | -4/Factory | High security lockdown imminent 20715 | -4/Factory | Garrison activated, responded to threat 20728 | -4/Factory | Found Adv. Kinecellerator 20733 | -4/Factory | Found Exp. Core Analyzer 20746 | -4/Factory | High security lockdown engaged 20816 | -4/Factory | Lost 13 allies 20931 | -4/Factory | Discovered new exit (range 15) 20940 | -4/Factory | Lost 9 allies 20996 | -4/Factory | Lost 4 allies 21073 | -4/Factory | Entered Research 21073 | -3/Research | Accompanied by 7 allies 21073 | -3/Research | Evolved 2 slots: Utility x2 21148 | -3/Research | Spotted B-86 Titan 21156 | -3/Research | Found Imp. Powered Armor 21159 | -3/Research | Found Imp. Powered Armor 21178 | -3/Research | Allies destroyed B-86 Titan 21397 | -3/Research | High security lockdown imminent 21469 | -3/Research | Spotted B-86 Titan 21477 | -3/Research | High security lockdown engaged 21488 | -3/Research | Allies destroyed B-86 Titan 21627 | -3/Research | Spotted Executioner 21636 | -3/Research | Allies destroyed Executioner 21688 | -3/Research | Assimilated Heavy ARC 8a with formatsys_deep 21812 | -3/Research | Spotted Striker 21860 | -3/Research | System corruption reached 10% 21866 | -3/Research | Lost 10 allies 21887 | -3/Research | Spotted Striker 21887 | -3/Research | Spotted Striker 21890 | -3/Research | Spotted Investigator 21894 | -3/Research | Core integrity fell below 50% 21895 | -3/Research | Scanned by Researcher 21926 | -3/Research | Lost 21 parts (1p4n14u2w) 21990 | -3/Research | Core integrity fell below 20% 22021 | -3/Research | Spotted Striker 22021 | -3/Research | Spotted Executioner 22024 | -3/Research | Destroyed by G-67 Veteran with Plasma Rifle Last Messages --------------- 22004_ C-45 Heavy ARC bursts open, deploying its payload. 22004_ G-73 Enforcer unfolds itself. 22004_ B-74 Champion unfolds itself. 22004_ G-67 Veteran unfolds itself. 22004_ L-61 Swordsman unfolds itself. 22004_ E-15 Imp unfolds itself. 22006_ RIF reveals location of hidden door. 22015_ Critical hit (Burn: +37). 22016_ Critical hit (Impale). 22016_ E-15 Imp destroyed. 22018_ Hvy. Siege Treads destroyed. 22021_ C-45 Heavy ARC bursts open, deploying its payload. 22021_ P-80 Master unfolds itself. 22021_ Executioner unfolds itself. 22021_ Striker unfolds itself. 22021_ E-15 Imp unfolds itself. 22021_ Penetrated by Slug. 22024_ System corrupted: Component data lost. Map ----- +----------------------------------------------------+ | ??????????????????????????# ?? #?????????? | | ??????????????????????????# #?????????? | | ??????????????????????????# """"""" #????????## | | ??????????????????????????# """"""" #????????# | | ??????????????????????????# """"""" #????????# | | ??????????????????????????# #????????# | | ??????????????????????????# #???????# ! | | ??????????????????????????# #????????#! | | ??????????????????????????# "Y" #????????#! | | ??????????????????????????# """ = #????????# | | ??????????????????????????# !% #????????# | | ??????????????????????????# #????????## | | ??????????????????????######+####+########??????## | | ??????????????????????# # #???# | | ????????????????+?????# # ######???????# | | ????????????????# ????# # ############## | | ????????????????# ???# / # """T""" # | | ????????????????# ??# # # " # | | ????????????????# ?# # # "%" # | | ????????????????# ######g### # """" +! | | ????????????????# # """" # | | ????????????????# b b # """"" ## | | ????????????????# + """" ## | | ????????????????# "% " ## | | ????????????????######### ####" # ## | | ????????????????????????#@#??## # ## | | ????????????????????????#/#???# # ## | | ???????????????????????? ???# # ## | | ???????????????????????? ???# ############### | | ??????????????????????? ??# #?????????????# | | ??????????????????????? ??+" #?????????????# | | ?????????????????????? ?#%" #?????????????# | | ?????????????????????? ?#" #?????????????? | | ????????????????????? ! # #????????????# | | ????????????????????? # #????????????# | | ????????????????????###+####### ?????????????+ | | ???????????????????????????????? ?????????????# | | ????????????????????????????????????????????????? | | ?????????????????????????????????????????????????? | | ?????????????????????????????????????????????????? | | ????????????????????????????????????####+######### | | ??????????????????????????????????? | | ??????????????????????????????????? | | ??????????????????????????????????? | | ??????????????????????????????????? | | ??????????????????????????????????????#+######## | | ???????????????????????????????????????????????# | | ???????????????????????????????????????????????# | | ???????????????????????????????????????????????# | | ???????????????????????????????????????????????#% | +----------------------------------------------------+ Best States ------------- Heat Dissipation 65 Energy Generation 43 Energy Capacity 1150 Matter Stores 300 Matter Capacity 300 Sight Range 23 Terrain Scan Density 10 Armor Coverage 1400 Resistance: KI 30 Evasion (%) 55 Core Analysis 6 Recoil Reduction 4 Kinecelleration 50 Offensive Hacking 10 Relay Coupler Types 6 Relay Coupler Value 169 Item Schematics ----------------- None Robot Schematics ------------------ None Fabricated ------------ O-24 Administrator | x1 | -7/Factory | Preloaded S-27 Virus | x4 | -7/Factory | Preloaded Repaired ---------- Huge Storage Unit | 30% | -10/Materials Grenade Launcher | 10% | -8/Materials Plasma Cannon | 6% | -8/Materials Studied --------- Com. Wheel | -9/Materials | Hacked Wheel | -9/Materials | Hacked Arm. Wheel | -8/Materials | Hacked Hvy. Particle Cannon | -8/Materials | Hacked Particle Cannon | -8/Materials | Hacked Imp. Grenade Launcher | -8/Materials | Hacked Hvy. Plasma Cannon | -7/Factory | Hacked Alien Tech Used ----------------- None Achievements -------------- None Challenges ------------ None Game ------ Seed ArmorIonicTurbovents Manual? 0 Play Time 04:00:30 Cumulative 413.6 hours Start 2025.12.22 @ 15:27:13 End 2025.12.23 @ 00:44:21 Sessions 3 Manual Loads 0 Difficulty Rogue Special Mode None Game No. 196 Rogue 196 Adventurer 0 Explorer 0 Win Type - Total 12 Types 9/0/2/0/0/0/0/0/0/1 Lore% 84 Gallery% 82 Achievement% 56 Wizard Run 0 Options --------- Layout 1 ASCII 0 Keyboard 0 Movement Mouse Keybinds 0 Fullscreen 1 Font 24/Smallcaps Map View 50x35 Zoom Use 0% Tactical HUD 1 Map Filters NONE Filters NONE Steam 1 RUN: 38dc7917-26fc-43cd-982a-613bf12a0ad7